fUST/lending_fUST_20250208
["ID","MTS","AMOUNT","RATE_DAILY","PERIOD"]
[352219236,1739004650020,-354.7727591,0.000113,2]
[352219237,1739004650030,-151.0,0.000113,2]
[352219238,1739004650039,-151.0,0.000113,2]
[352219239,1739004650048,-151.0,0.000113,2]
[352219240,1739004650057,-502.63900238,0.00011329,2]
[352219241,1739004650066,-500.0,0.00011329,2]
[352219242,1739004650076,-500.0,0.00011369,2]
[352219243,1739004650085,-580.13711305,0.00011369,2]
[352219244,1739004650095,-500.0,0.00011369,2]
[352219245,1739004650104,-500.0,0.00011369,2]
[352219246,1739004650113,-500.0,0.00011369,2]
[352219247,1739004650123,-557.68,0.00011369,2]
[352219248,1739004650132,-500.0,0.00011369,2]
[352219249,1739004650141,-500.0,0.00011369,2]
[352219250,1739004650150,-402.32676961,0.00011369,2]
[352219251,1739004650160,-500.0,0.00011369,2]
[352219252,1739004650169,-500.0,0.00011369,2]
[352219253,1739004650178,-500.0,0.00011369,2]
[352219254,1739004650188,-500.0,0.00011369,2]
[352219255,1739004650197,-500.0,0.00011369,2]
[352219256,1739004650206,-500.0,0.00011369,2]
[352219257,1739004650215,-500.0,0.00011369,2]
[352219258,1739004650225,-500.0,0.00011369,2]
[352219259,1739004650234,-645.97,0.00011369,2]
[352219260,1739004650244,-500.0,0.00011369,2]
[352219261,1739004650253,-500.0,0.00011369,2]
[352219262,1739004650263,-500.0,0.00011369,2]
[352219263,1739004650272,-500.0,0.00011369,2]
[352219264,1739004650282,-500.0,0.00011369,2]
[352219265,1739004650291,-500.0,0.00011369,2]
[352219266,1739004650301,-500.0,0.00011369,2]
[352219267,1739004650310,-500.0,0.00011369,2]
[352219268,1739004650320,-439.80632446,0.00011369,2]
[352219269,1739004650329,-417.9,0.00011369,2]
[352219270,1739004650338,-500.0,0.00011369,2]
[352219271,1739004650348,-814.82,0.00011369,2]
[352219272,1739004650357,-500.0,0.00011369,2]
[352219273,1739004650367,-366.21379889,0.00011369,2]
[352219274,1739004650376,-500.0,0.00011369,2]
[352219275,1739004650386,-167.93271619,0.00011369,2]
[352219276,1739004650397,-500.0,0.00011369,2]
[352219277,1739004650406,-500.0,0.00011369,2]
[352219278,1739004650415,-500.0,0.00011369,2]
[352219279,1739004650424,-500.0,0.00011369,2]
[352219280,1739004650433,-500.0,0.00011369,2]
[352219281,1739004650443,-584.37,0.00011369,2]
[352219282,1739004650455,-796.4,0.00011369,2]
[352219283,1739004650465,-500.0,0.00011369,2]
[352219284,1739004650475,-717.23,0.00011369,2]
[352219285,1739004650484,-500.0,0.00011369,2]
[352219286,1739004650494,-500.0,0.00011369,2]
[352219287,1739004650504,-500.0,0.00011369,2]
[352219288,1739004650513,-500.0,0.00011369,2]
[352219289,1739004650523,-500.0,0.00011369,2]
[352219290,1739004650536,-1143.72,0.00011369,2]
[352219291,1739004650547,-500.0,0.00011369,2]
[352219292,1739004650556,-500.0,0.00011369,2]
[352219293,1739004650566,-500.0,0.00011369,2]
[352219294,1739004650575,-500.0,0.00011369,2]
[352219295,1739004650584,-500.0,0.00011369,2]
[352219296,1739004650594,-500.0,0.00011369,2]
[352219297,1739004650603,-500.0,0.00011369,2]
[352219298,1739004650613,-214.49,0.00011369,2]
[352219299,1739004650623,-1428.17,0.00011369,2]
[352219300,1739004650633,-500.0,0.00011369,2]
[352219301,1739004650642,-678.64,0.00011369,2]
[352219302,1739004650652,-1478.44,0.00011369,2]
[352219303,1739004650662,-176.82274771,0.00011369,2]
[352219304,1739004650671,-769.75,0.00011369,2]
[352219305,1739004650681,-425.23565614,0.00011369,2]
[352219306,1739004650691,-500.0,0.00011369,2]
[352219307,1739004650700,-500.0,0.00011369,2]
[352219308,1739004650709,-500.0,0.00011369,2]
[352219309,1739004650719,-500.0,0.00011369,2]
[352219310,1739004650729,-500.0,0.00011369,2]
[352219311,1739004650738,-500.0,0.00011369,2]
[352219312,1739004650748,-500.0,0.00011369,2]
[352219313,1739004650757,-500.0,0.00011369,2]
[352219314,1739004650767,-500.0,0.00011369,2]
[352219315,1739004650776,-500.0,0.00011369,2]
[352219316,1739004650786,-500.0,0.00011369,2]
[352219317,1739004650795,-500.0,0.00011369,2]
[352219318,1739004650804,-500.0,0.00011369,2]
[352219319,1739004650813,-1166.16,0.00011369,2]
[352219320,1739004650822,-533.1,0.00011369,2]
[352219321,1739004650831,-500.0,0.00011369,2]
[352219322,1739004650841,-1767.18,0.00011369,2]
[352219323,1739004650851,-500.0,0.00011369,2]
[352219324,1739004650860,-500.0,0.00011369,2]
[352219325,1739004650869,-741.85,0.00011369,2]
[352219326,1739004650878,-4764.35,0.00011369,2]
[352219327,1739004650887,-500.0,0.00011369,2]
[352219328,1739004650897,-19045.64,0.00011369,2]
[352219329,1739004650906,-500.0,0.00011369,2]
[352219330,1739004650915,-544.83,0.00011369,2]
[352219331,1739004650926,-500.0,0.00011369,2]
[352219332,1739004650937,-500.0,0.00011369,2]
[352219333,1739004650947,-2200.12,0.00011369,2]
[352219334,1739004650956,-500.0,0.00011369,2]
[352219335,1739004650965,-500.0,0.00011369,2]
[352219336,1739004650974,-1120.93,0.00011369,2]
[352219337,1739004650983,-1220.2,0.00011369,2]
[352219338,1739004650992,-1618.01,0.00011369,2]
[352219339,1739004651001,-500.0,0.00011369,2]
[352219340,1739004651011,-504.50185385,0.00011369,2]
[352219341,1739004651020,-500.0,0.00011369,2]
[352219342,1739004651029,-3389.56,0.00011369,2]
[352219343,1739004651038,-500.0,0.00011369,2]
[352219344,1739004651047,-500.0,0.00011369,2]
[352219345,1739004651057,-500.0,0.00011369,2]
[352219346,1739004651066,-500.0,0.00011369,2]
[352219347,1739004651075,-500.0,0.00011369,2]
[352219348,1739004651084,-677.5,0.00011369,2]
[352219349,1739004651094,-2927.41,0.00011369,2]
[352219350,1739004651103,-500.0,0.00011369,2]
[352219351,1739004651112,-500.0,0.00011369,2]
[352219352,1739004651122,-500.0,0.00011369,2]
[352219353,1739004651131,-500.0,0.00011369,2]
[352219354,1739004651141,-500.0,0.00011369,2]
[352219355,1739004651151,-500.0,0.00011369,2]
[352219356,1739004651161,-581.58,0.00011369,2]
[352219357,1739004651170,-1343.51,0.00011369,2]
[352219358,1739004651180,-829.5,0.00011369,2]
[352219359,1739004651189,-500.0,0.00011369,2]
[352219360,1739004651198,-500.0,0.00011369,2]
[352219361,1739004651208,-500.0,0.00011369,2]
[352219362,1739004651218,-3418.06,0.00011369,2]
[352219363,1739004651227,-1333.83,0.00011369,2]
[352219364,1739004651237,-151.0,0.00011369,2]
[352219365,1739004651246,-500.0,0.00011369,2]
[352219366,1739004651256,-775.57,0.00011369,2]
[352219367,1739004651266,-500.0,0.00011369,2]
[352219368,1739004651275,-500.0,0.00011369,2]
[352219369,1739004651285,-500.0,0.00011369,2]
[352219370,1739004651295,-500.0,0.00011369,2]
[352219371,1739004651305,-4020.14,0.00011369,2]
[352219372,1739004651314,-5507.89,0.00011369,2]
[352219373,1739004651323,-500.0,0.00011369,2]
[352219374,1739004651333,-500.0,0.00011369,2]
[352219375,1739004651343,-500.0,0.00011369,2]
[352219376,1739004651352,-500.0,0.00011369,2]
[352219377,1739004651362,-500.0,0.00011369,2]
[352219378,1739004651372,-2048.23,0.00011369,2]
[352219379,1739004651381,-500.0,0.00011369,2]
[352219380,1739004651391,-500.0,0.00011369,2]
[352219381,1739004651402,-500.0,0.00011369,2]
[352219382,1739004651411,-500.0,0.00011369,2]
[352219383,1739004651420,-500.0,0.00011369,2]
[352219384,1739004651430,-500.0,0.00011369,2]
[352219385,1739004651439,-1327.36,0.00011369,2]
[352219386,1739004651451,-500.0,0.00011369,2]
[352219387,1739004651461,-500.0,0.00011369,2]
[352219388,1739004651470,-500.0,0.00011369,2]
[352219389,1739004651479,-500.0,0.00011369,2]
[352219390,1739004651489,-500.0,0.00011369,2]
[352219391,1739004651498,-1560.8,0.00011369,2]
[352219392,1739004651507,-1115.5,0.00011369,2]
[352219393,1739004651516,-500.0,0.00011369,2]
[352219394,1739004651525,-694.36,0.00011369,2]
[352219395,1739004651536,-500.0,0.00011369,2]
[352219396,1739004651554,-1270.62,0.00011369,2]
[352219397,1739004651563,-500.0,0.00011369,2]
[352219398,1739004651572,-500.0,0.00011369,2]
[352219399,1739004651582,-500.0,0.00011369,2]
[352219400,1739004651591,-500.0,0.00011369,2]
[352219401,1739004651601,-500.0,0.00011369,2]
[352219402,1739004651610,-1347.51,0.00011369,2]
[352219403,1739004651619,-500.0,0.00011369,2]
[352219404,1739004651629,-46694.12,0.00011369,2]
[352219405,1739004651638,-500.0,0.00011369,2]
[352219406,1739004651650,-15782.89,0.00011369,2]
[352219407,1739004651659,-151.0,0.00011369,2]
[352219408,1739004651669,-500.0,0.00011369,2]
[352219409,1739004651678,-500.0,0.00011369,2]
[352219410,1739004651687,-500.0,0.00011369,2]
[352219411,1739004651696,-1870.75,0.00011369,2]
[352219412,1739004651705,-151.0,0.00011369,2]
[352219413,1739004651714,-500.0,0.00011369,2]
[352219414,1739004651723,-151.035345,0.00011369,2]
[352219415,1739004651733,-2138.93,0.00011369,2]
[352219416,1739004651742,-500.0,0.00011369,2]
[352219417,1739004651751,-500.0,0.00011369,2]
[352219418,1739004651760,-500.0,0.00011369,2]
[352219419,1739004651769,-515.34,0.00011369,2]
[352219420,1739004651778,-500.0,0.00011369,2]
[352219421,1739004651788,-2013.92,0.00011369,2]
[352219422,1739004651797,-500.0,0.00011369,2]
[352219423,1739004651806,-500.0,0.00011369,2]
[352219424,1739004651815,-500.0,0.00011369,2]
[352219425,1739004651825,-500.0,0.00011369,2]
[352219426,1739004651834,-1180.42,0.00011369,2]
[352219427,1739004651843,-500.0,0.00011369,2]
[352219428,1739004651853,-500.0,0.00011369,2]
[352219429,1739004651862,-151.0,0.00011369,2]
[352219430,1739004651872,-500.0,0.00011369,2]
[352219431,1739004651881,-500.0,0.00011369,2]
[352219432,1739004651891,-629.3695022,0.00011369,2]
[352219433,1739004651902,-919.65,0.00011369,2]
[352219434,1739004651912,-500.0,0.00011369,2]
[352219435,1739004651921,-617.34,0.00011369,2]
[352219436,1739004651931,-500.0,0.00011369,2]
[352219437,1739004651940,-500.0,0.00011369,2]
[352219438,1739004651949,-500.0,0.00011369,2]
[352219439,1739004651959,-3443.13,0.00011369,2]
[352219440,1739004651968,-500.0,0.00011369,2]
[352219441,1739004651977,-927.8,0.00011369,2]
[352219442,1739004651987,-500.0,0.00011369,2]
[352219443,1739004651996,-500.0,0.00011369,2]
[352219444,1739004652005,-500.0,0.00011369,2]
[352219445,1739004652014,-1713.02,0.00011369,2]
[352219446,1739004652024,-4055.35,0.00011369,2]
[352219447,1739004652033,-500.0,0.00011369,2]
[352219448,1739004652042,-151.0,0.00011369,2]
[352219449,1739004652051,-3896.38,0.00011369,2]
[352219450,1739004652060,-658.29,0.00011369,2]
[352219451,1739004652104,-818.4,0.00011369,2]
[352219452,1739004652113,-567.08,0.00011369,2]
[352219453,1739004652123,-151.0,0.00011369,2]
[352219454,1739004652132,-1301.8,0.00011369,2]
[352219455,1739004652141,-1597.63,0.00011369,2]
[352219456,1739004652153,-500.0,0.00011369,2]
[352219457,1739004652162,-1566.18,0.00011369,2]
[352219458,1739004652171,-500.0,0.00011369,2]
[352219459,1739004652181,-630.35,0.00011369,2]
[352219460,1739004652190,-500.0,0.00011369,2]
[352219461,1739004652200,-500.0,0.00011369,2]
[352219462,1739004652210,-641.85,0.00011369,2]
[352219463,1739004652219,-8485.04,0.00011369,2]
[352219464,1739004652229,-500.0,0.00011369,2]
[352219465,1739004652238,-500.0,0.00011369,2]
[352219466,1739004652247,-500.0,0.00011369,2]
[352219467,1739004652257,-500.0,0.00011369,2]
[352219468,1739004652266,-500.0,0.00011369,2]
[352219469,1739004652276,-500.0,0.00011369,2]
[352219470,1739004652285,-1711.59,0.00011369,2]
[352219471,1739004652294,-500.0,0.00011369,2]
[352219472,1739004652303,-193.717122,0.00011369,2]
[352219473,1739004652312,-151.0,0.000115,2]
[352219474,1739004652321,-151.0,0.000115,2]
[352219475,1739004652331,-500.0,0.00011506,2]
[352219476,1739004652341,-500.0,0.00011506,2]
[352219477,1739004652349,-500.0,0.00011506,2]
[352219478,1739004652359,-500.0,0.00011506,2]
[352219479,1739004652368,-557.68,0.00011506,2]
[352219480,1739004652377,-500.0,0.00011506,2]
[352219481,1739004652386,-500.0,0.00011506,2]
[352219482,1739004652395,-500.0,0.00011506,2]
[352219483,1739004652404,-500.0,0.00011506,2]
[352219484,1739004652413,-500.0,0.00011506,2]
[352219485,1739004652422,-504.76,0.00011506,2]
[352219486,1739004652431,-500.0,0.00011506,2]
[352219487,1739004652441,-500.0,0.00011506,2]
[352219488,1739004652452,-500.0,0.00011506,2]
[352219489,1739004652462,-645.97,0.00011506,2]
[352219490,1739004652472,-500.0,0.00011506,2]
[352219491,1739004652481,-578.4468197,0.00011506,2]
[352219492,1739004652490,-500.0,0.00011506,2]
[352219493,1739004652500,-500.0,0.00011506,2]
[352219494,1739004652509,-500.0,0.00011506,2]
[352219495,1739004652518,-500.0,0.00011506,2]
[352219496,1739004652528,-500.0,0.00011506,2]
[352219497,1739004652539,-500.0,0.00011506,2]
[352219498,1739004652549,-472.88083876,0.00011506,2]
[352219499,1739004652559,-814.82,0.00011506,2]
[352219500,1739004652568,-500.0,0.00011506,2]
[352219501,1739004652577,-500.0,0.00011506,2]
[352219502,1739004652586,-500.0,0.00011506,2]
[352219503,1739004652595,-500.0,0.00011506,2]
[352219504,1739004652604,-500.0,0.00011506,2]
[352219505,1739004652613,-500.0,0.00011506,2]
[352219506,1739004652623,-500.0,0.00011506,2]
[352219507,1739004652632,-584.37,0.00011506,2]
[352219508,1739004652641,-796.4,0.00011506,2]
[352219509,1739004652651,-298.36,0.00011506,2]
[352219510,1739004652660,-717.23,0.00011506,2]
[352219511,1739004652670,-500.0,0.00011506,2]
[352219512,1739004652679,-500.0,0.00011506,2]
[352219513,1739004652688,-500.0,0.00011506,2]
[352219514,1739004652697,-500.0,0.00011506,2]
[352219515,1739004652706,-500.0,0.00011506,2]
[352219516,1739004652716,-1143.72,0.00011506,2]
[352219517,1739004652725,-500.0,0.00011506,2]
[352219518,1739004652735,-500.0,0.00011506,2]
[352219519,1739004652744,-500.0,0.00011506,2]
[352219520,1739004652754,-500.0,0.00011506,2]
[352219521,1739004652763,-500.0,0.00011506,2]
[352219522,1739004652772,-500.0,0.00011506,2]
[352219523,1739004652782,-500.0,0.00011506,2]
[352219524,1739004652791,-1428.17,0.00011506,2]
[352219525,1739004652800,-500.0,0.00011506,2]
[352219526,1739004652808,-678.64,0.00011506,2]
[352219527,1739004652817,-1478.44,0.00011506,2]
[352219528,1739004652826,-769.75,0.00011506,2]
[352219529,1739004652835,-636.894908,0.00011506,2]
[352219530,1739004652844,-500.0,0.00011506,2]
[352219531,1739004652854,-500.0,0.00011506,2]
[352219532,1739004652863,-224.22689,0.00011506,2]
[352219533,1739004652872,-224.22689,0.00011506,2]
[352219534,1739004652882,-500.0,0.00011506,2]
[352219535,1739004652891,-500.0,0.00011506,2]
[352219536,1739004652901,-500.0,0.00011506,2]
[352219537,1739004652911,-500.0,0.00011506,2]
[352219538,1739004652920,-151.0,0.00011506,2]
[352219539,1739004652930,-500.0,0.00011506,2]
[352219540,1739004652939,-151.0,0.00011506,2]
[352219541,1739004652949,-500.0,0.00011506,2]
[352219542,1739004652958,-500.0,0.00011506,2]
[352219543,1739004652968,-500.0,0.00011506,2]
[352219544,1739004652977,-262.206767,0.00011506,2]
[352219545,1739004652986,-500.0,0.00011506,2]
[352219546,1739004652995,-1166.16,0.00011506,2]
[352219547,1739004653004,-500.0,0.00011506,2]
[352219548,1739004653013,-439.920227,0.00011506,2]
[352219549,1739004653023,-1767.18,0.00011506,2]
[352219550,1739004653032,-439.920227,0.00011506,2]
[352219551,1739004653041,-500.0,0.00011506,2]
[352219552,1739004653049,-500.0,0.00011506,2]
[352219553,1739004653058,-741.85,0.00011506,2]
[352219554,1739004653067,-4764.35,0.00011506,2]
[352219555,1739004653077,-500.0,0.00011506,2]
[352219556,1739004653087,-19045.64,0.00011506,2]
[352219557,1739004653096,-500.0,0.00011506,2]
[352219558,1739004653106,-544.83,0.00011506,2]
[352219559,1739004653117,-500.0,0.00011506,2]
[352219560,1739004653128,-500.0,0.00011506,2]
[352219561,1739004653137,-2200.12,0.00011506,2]
[352219562,1739004653147,-500.0,0.00011506,2]
[352219563,1739004653157,-500.0,0.00011506,2]
[352219564,1739004653166,-1120.93,0.00011506,2]
[352219565,1739004653176,-1220.2,0.00011506,2]
[352219566,1739004653186,-1618.01,0.00011506,2]
[352219567,1739004653195,-500.0,0.00011506,2]
[352219568,1739004653204,-500.0,0.00011506,2]
[352219569,1739004653213,-3389.56,0.00011506,2]
[352219570,1739004653223,-500.0,0.00011506,2]
[352219571,1739004653232,-500.0,0.00011506,2]
[352219572,1739004653241,-500.0,0.00011506,2]
[352219573,1739004653251,-500.0,0.00011506,2]
[352219574,1739004653261,-500.0,0.00011506,2]
[352219575,1739004653271,-677.5,0.00011506,2]
[352219576,1739004653280,-2927.41,0.00011506,2]
[352219577,1739004653290,-328.590582,0.00011506,2]
[352219578,1739004653299,-545.76094174,0.00011506,2]
[352219579,1739004653308,-500.0,0.00011506,2]
[352219580,1739004653319,-500.0,0.00011506,2]
[352219581,1739004653328,-500.0,0.00011506,2]
[352219582,1739004653338,-500.0,0.00011506,2]
[352219583,1739004653347,-581.58,0.00011506,2]
[352219584,1739004653357,-1343.51,0.00011506,2]
[352219585,1739004653367,-829.5,0.00011506,2]
[352219586,1739004653376,-500.0,0.00011506,2]
[352219587,1739004653386,-500.0,0.00011506,2]
[352219588,1739004653396,-500.0,0.00011506,2]
[352219589,1739004653405,-3418.06,0.00011506,2]
[352219590,1739004653415,-337.141597,0.00011506,2]
[352219591,1739004653425,-1333.83,0.00011506,2]
[352219592,1739004653435,-500.0,0.00011506,2]
[352219593,1739004653445,-337.141597,0.00011506,2]
[352219594,1739004653457,-775.57,0.00011506,2]
[352219595,1739004653467,-500.0,0.00011506,2]
[352219596,1739004653478,-514.16,0.00011506,2]
[352219597,1739004653489,-500.0,0.00011506,2]
[352219598,1739004653499,-500.0,0.00011506,2]
[352219599,1739004653509,-4020.14,0.00011506,2]
[352219600,1739004653519,-5507.89,0.00011506,2]
[352219601,1739004653529,-500.0,0.00011506,2]
[352219602,1739004653540,-500.0,0.00011506,2]
[352219603,1739004653549,-500.0,0.00011506,2]
[352219604,1739004653559,-500.0,0.00011506,2]
[352219605,1739004653569,-2048.23,0.00011506,2]
[352219606,1739004653579,-500.0,0.00011506,2]
[352219607,1739004653588,-500.0,0.00011506,2]
[352219608,1739004653599,-500.0,0.00011506,2]
[352219609,1739004653609,-500.0,0.00011506,2]
[352219610,1739004653620,-500.0,0.00011506,2]
[352219611,1739004653630,-1327.36,0.00011506,2]
[352219612,1739004653640,-151.0,0.00011506,2]
[352219613,1739004653654,-500.0,0.00011506,2]
[352219614,1739004653663,-500.0,0.00011506,2]
[352219615,1739004653674,-500.0,0.00011506,2]
[352219616,1739004653684,-500.0,0.00011506,2]
[352219617,1739004653694,-500.0,0.00011506,2]
[352219618,1739004653703,-1560.8,0.00011506,2]
[352219619,1739004653713,-1115.5,0.00011506,2]
[352219620,1739004653723,-500.0,0.00011506,2]
[352219621,1739004653732,-694.36,0.00011506,2]
[352219622,1739004653742,-1270.62,0.00011506,2]
[352219623,1739004653752,-500.0,0.00011506,2]
[352219624,1739004653762,-500.0,0.00011506,2]
[352219625,1739004653772,-500.0,0.00011506,2]
[352219626,1739004653782,-500.0,0.00011506,2]
[352219627,1739004653791,-500.0,0.00011506,2]
[352219628,1739004653801,-1347.51,0.00011506,2]
[352219629,1739004653811,-500.0,0.00011506,2]
[352219630,1739004653820,-46694.12,0.00011506,2]
[352219631,1739004653830,-500.0,0.00011506,2]
[352219632,1739004653839,-15782.89,0.00011506,2]
[352219633,1739004653849,-500.0,0.00011506,2]
[352219634,1739004653859,-500.0,0.00011506,2]
[352219635,1739004653868,-500.0,0.00011506,2]
[352219636,1739004653878,-1870.75,0.00011506,2]
[352219637,1739004653888,-500.0,0.00011506,2]
[352219638,1739004653900,-2138.93,0.00011506,2]
[352219639,1739004653909,-642.11100735,0.00011506,2]
[352219640,1739004653918,-500.0,0.00011506,2]
[352219641,1739004653928,-500.0,0.00011506,2]
[352219642,1739004653938,-500.0,0.00011506,2]
[352219643,1739004653947,-2013.92,0.00011506,2]
[352219644,1739004653957,-500.0,0.00011506,2]
[352219645,1739004653967,-500.0,0.00011506,2]
[352219646,1739004653976,-500.0,0.00011506,2]
[352219647,1739004653986,-500.0,0.00011506,2]
[352219648,1739004653995,-1180.42,0.00011506,2]
[352219649,1739004654005,-500.0,0.00011506,2]
[352219650,1739004654015,-500.0,0.00011506,2]
[352219651,1739004654024,-151.0,0.00011506,2]
[352219652,1739004654033,-500.0,0.00011506,2]
[352219653,1739004654043,-500.0,0.00011506,2]
[352219654,1739004654052,-919.65,0.00011506,2]
[352219655,1739004654062,-500.0,0.00011506,2]
[352219656,1739004654071,-617.34,0.00011506,2]
[352219657,1739004654081,-500.0,0.00011506,2]
[352219658,1739004654090,-500.0,0.00011506,2]
[352219659,1739004654100,-500.0,0.00011506,2]
[352219660,1739004654109,-3443.13,0.00011506,2]
[352219661,1739004654119,-500.0,0.00011506,2]
[352219662,1739004654128,-927.8,0.00011506,2]
[352219663,1739004654138,-500.0,0.00011506,2]
[352219664,1739004654148,-500.0,0.00011506,2]
[352219665,1739004654157,-500.0,0.00011506,2]
[352219666,1739004654167,-1713.02,0.00011506,2]
[352219667,1739004654177,-4055.35,0.00011506,2]
[352219668,1739004654186,-500.0,0.00011506,2]
[352219669,1739004654196,-151.0,0.00011506,2]
[352219670,1739004654205,-3896.38,0.00011506,2]
[352219671,1739004654214,-658.29,0.00011506,2]
[352219672,1739004654224,-818.4,0.00011506,2]
[352219673,1739004654234,-567.08,0.00011506,2]
[352219674,1739004654243,-151.0,0.00011506,2]
[352219675,1739004654253,-1301.8,0.00011506,2]
[352219676,1739004654262,-1597.63,0.00011506,2]
[352219677,1739004654271,-500.0,0.00011506,2]
[352219678,1739004654280,-1566.18,0.00011506,2]
[352219679,1739004654291,-500.0,0.00011506,2]
[352219680,1739004654300,-630.35,0.00011506,2]
[352219681,1739004654309,-500.0,0.00011506,2]
[352219682,1739004654319,-500.0,0.00011506,2]
[352219683,1739004654328,-641.85,0.00011506,2]
[352219684,1739004654338,-8485.04,0.00011506,2]
[352219685,1739004654348,-500.0,0.00011506,2]
[352219686,1739004654358,-500.0,0.00011506,2]
[352219687,1739004654367,-500.0,0.00011506,2]
[352219688,1739004654376,-529.97,0.00011506,2]
[352219689,1739004654387,-500.0,0.00011506,2]
[352219690,1739004654396,-500.0,0.00011506,2]
[352219691,1739004654406,-1711.59,0.00011506,2]
[352219692,1739004654415,-500.0,0.00011506,2]
[352219693,1739004654426,-193.717122,0.00011506,2]
[352219694,1739004654435,-1000.0,0.00011521,2]
[352219695,1739004654446,-1000.0,0.00011521,2]
[352219696,1739004654459,-1000.0,0.00011521,2]
[352219697,1739004654469,-324.785,0.00011543,2]
[352219698,1739004654479,-151.0,0.000116,2]
[352219699,1739004654489,-500.0,0.00011643,2]
[352219700,1739004654498,-500.0,0.00011643,2]
[352219701,1739004654508,-500.0,0.00011643,2]
[352219702,1739004654518,-500.0,0.00011643,2]
[352219703,1739004654528,-557.68,0.00011643,2]
[352219704,1739004654539,-214.08338915,0.00011643,2]
[352219705,1739004654548,-361.60167079,0.00011643,2]
[352219706,1739004654558,-500.0,0.00011643,2]
[352219707,1739004654567,-500.0,0.00011643,2]
[352219708,1739004654577,-500.0,0.00011643,2]
[352219709,1739004654588,-500.0,0.00011643,2]
[352219710,1739004654598,-500.0,0.00011643,2]
[352219711,1739004654608,-589.68,0.00011643,2]
[352219712,1739004654617,-645.97,0.00011643,2]
[352219713,1739004654628,-500.0,0.00011643,2]
[352219714,1739004654638,-500.0,0.00011643,2]
[352219715,1739004654649,-500.0,0.00011643,2]
[352219716,1739004654659,-500.0,0.00011643,2]
[352219717,1739004654668,-500.0,0.00011643,2]
[352219718,1739004654678,-500.0,0.00011643,2]
[352219719,1739004654687,-500.0,0.00011643,2]
[352219720,1739004654697,-814.82,0.00011643,2]
[352219721,1739004654707,-500.0,0.00011643,2]
[352219722,1739004654717,-151.0,0.00011643,2]
[352219723,1739004654728,-468.626734,0.00011643,2]
[352219724,1739004654738,-500.0,0.00011643,2]
[352219725,1739004654748,-468.626734,0.00011643,2]
[352219726,1739004654758,-500.0,0.00011643,2]
[352219727,1739004654768,-500.0,0.00011643,2]
[352219728,1739004654777,-500.0,0.00011643,2]
[352219729,1739004654787,-500.0,0.00011643,2]
[352219730,1739004654797,-500.0,0.00011643,2]
[352219731,1739004654807,-584.37,0.00011643,2]
[352219732,1739004654817,-151.0,0.00011643,2]
[352219733,1739004654826,-796.4,0.00011643,2]
[352219734,1739004654835,-151.0,0.00011643,2]
[352219735,1739004654845,-717.23,0.00011643,2]